bitfinex-derivatives/quotes_BNBF0:USTF0_20260221
["timestamp","ask_amount","ask_price","bid_price","bid_amount"]
[1771708251533,1.18494244,626.2,625.72,1.746]
[1771708253333,1.18494244,626.21,625.72,1.746]
[1771708255435,1.18494244,626.22,625.72,1.746]
[1771708256637,1.18494244,626.22,625.3,1.19189221]
[1771708257534,1.18494244,626.22,625.29,1.19189221]
[1771708257833,1.18494244,626.21,625.28,1.19189221]
[1771708260436,1.18494244,626.21,625.29,1.286]
[1771708260739,1.18494244,626.22,625.29,2.47789221]
[1771708262739,1.18494244,626.22,625.3,1.19189221]
[1771708263341,1.18494244,626.24,625.32,1.19189221]
[1771708265145,1.18494244,626.24,625.33,1.19189221]
[1771708266546,1.18494244,626.23,625.33,1.19189221]
[1771708267543,1.18494244,626.23,625.34,1.19189221]
[1771708268347,1.18494244,626.22,625.35,1.19189221]
[1771708270452,1.18494244,626.21,625.35,1.19189221]
[1771708271552,1.18494244,626.21,625.36,1.19189221]
[1771708272454,1.18494244,626.2,625.36,1.19189221]
[1771708273350,1.18494244,626.2,625.37,1.19189221]
[1771708274356,1.18494244,626.19,625.37,1.19189221]
[1771708275557,1.18494244,626.19,625.38,1.19189221]
[1771708276359,1.18494244,626.18,625.39,1.19189221]
[1771708277460,1.18494244,626.17,625.4,1.19189221]
[1771708278362,1.18494244,626.16,625.41,1.19189221]
[1771708279061,1.18650279,626.16,625.41,1.19421827]
[1771708279460,1.18650279,626.16,625.42,1.19421827]
[1771708280160,1.18650279,626.15,625.42,1.19421827]
[1771708281362,1.18650279,626.15,625.43,1.19421827]
[1771708282257,1.18650279,626.14,625.43,1.19421827]
[1771708283458,1.18650279,626.13,625.44,1.19421827]
[1771708284361,1.18650279,626.13,625.45,1.19421827]
[1771708285259,1.18650279,626.12,625.45,1.19421827]
[1771708285459,1.18650279,626.12,625.46,1.19421827]
[1771708286362,1.18650279,626.11,625.47,1.19421827]
[1771708287468,1.18650279,626.09,625.48,1.19421827]
[1771708288466,1.18650279,626.08,625.49,1.19421827]
[1771708289572,1.18650279,626.08,625.5,1.19421827]
[1771708290271,1.18650279,626.07,625.5,1.19421827]
[1771708293374,1.18650279,626.07,625.51,1.19421827]
[1771708303379,1.18650279,626.06,625.51,1.19421827]
[1771708307181,1.18650279,626.06,625.52,1.19421827]
[1771708308185,1.18650279,626.05,625.52,1.19421827]
[1771708313895,1.18650279,626.03,625.5,1.19421827]
[1771708314094,1.18650279,625.92,625.43,1.277]
[1771708315294,1.18650279,625.93,625.43,1.277]
[1771708316297,1.18650279,625.94,625.43,1.277]
[1771708317100,1.18650279,625.95,625.43,1.277]
[1771708319196,1.18650279,625.96,625.43,1.277]
[1771708322201,1.18650279,625.97,625.43,1.277]
[1771708325099,1.18650279,625.98,625.43,1.277]
[1771708325501,1.18650279,625.99,625.43,1.277]
[1771708326203,1.18650279,625.98,625.43,1.277]
[1771708329204,1.58182107,626.1,625.43,1.277]
[1771708329205,1.18650279,625.99,625.43,1.277]
[1771708334211,1.58182107,626.1,625.43,1.277]
[1771708334412,1.18702524,625.99,625.43,1.277]
[1771708339109,1.18702524,625.99,625.27,1.19514021]
[1771708339310,1.18702524,625.9,625.09,0.27807521]
[1771708343115,1.18702524,625.89,625.09,0.27807521]
[1771708347017,1.58182107,626.0,625.09,0.27807521]
[1771708347817,2.37067184,626.11,625.09,0.27807521]
[1771708348017,1.18766128,625.89,625.09,0.27807521]
[1771708348217,1.18766128,625.88,625.09,0.27807521]
[1771708348614,1.18766128,625.9,625.09,1.87236838]
[1771708349118,1.18766128,625.89,625.09,1.87236838]
[1771708349315,1.18766128,625.89,625.1,1.325]
[1771708350020,1.18812923,625.89,625.1,1.325]
[1771708350316,1.18812923,625.89,625.1,2.91929317]
[1771708352120,1.18812923,625.88,625.1,2.91929317]
[1771708353324,1.18812923,625.88,625.11,1.59429317]
[1771708354122,1.18812923,625.87,625.11,1.59429317]
[1771708355022,1.18812923,625.87,625.12,1.59429317]
[1771708355222,1.18812923,625.86,625.12,1.59429317]
[1771708356323,1.58354837,625.97,625.13,1.59429317]
[1771708356324,1.18812923,625.85,625.13,1.59429317]
[1771708357321,1.18812923,625.84,625.14,1.59429317]
[1771708358122,1.18812923,625.82,625.16,1.59429317]
[1771708368127,1.18812923,625.82,625.17,1.367]
[1771708369229,1.18812923,625.87,625.21,1.59429317]
[1771708374828,1.1915529,625.87,625.21,1.59429317]
[1771708388242,1.1915529,625.86,625.21,1.59429317]
[1771708392243,1.1915529,625.86,625.22,1.59429317]
[1771708399359,1.1915529,625.89,625.36,1.19956708]
[1771708407165,1.1915529,625.9,625.36,1.19956708]
[1771708416073,1.1915529,625.95,625.42,1.19956708]
[1771708416369,1.1915529,625.96,625.41,1.19956708]
[1771708417270,1.1915529,625.96,625.4,1.19956708]
[1771708418371,1.1915529,625.97,625.4,1.19956708]
[1771708421077,1.1915529,625.97,625.39,1.19956708]
[1771708422273,1.1915529,625.98,625.39,1.19956708]
[1771708422474,1.1915529,625.98,625.4,1.73]
[1771708425980,1.1915529,625.99,625.4,2.92956708]
[1771708426183,1.58354837,626.11,625.41,1.19956708]
[1771708426184,1.1915529,626.0,625.41,1.19956708]
[1771708426683,1.1915529,626.05,625.45,1.19956708]
[1771708426881,0.27808743,626.34,625.4,1.73]
[1771708426882,1.1915529,626.06,625.46,1.19956708]
[1771708427281,2.37067184,626.29,625.46,1.19956708]
[1771708427282,1.1915529,626.07,625.46,1.19956708]
[1771708428282,1.1915529,626.07,625.45,1.19956708]
[1771708429182,1.1915529,626.08,625.45,1.19956708]
[1771708430183,1.1915529,626.09,625.45,1.19956708]
[1771708431488,1.1915529,626.09,625.44,1.19956708]
[1771708434192,1.1915529,626.1,625.44,1.19956708]
[1771708435092,1.1915529,626.12,625.46,1.19956708]
[1771708435289,1.1915529,626.12,625.45,1.19956708]
[1771708436888,1.58354837,626.24,625.4,1.73]
[1771708436889,1.1915529,626.11,625.44,1.19956708]
[1771708437090,1.1915529,626.1,625.43,1.19956708]
[1771708439194,1.1915529,626.1,625.42,1.19956708]
[1771708442194,1.58354837,626.22,625.4,1.73]
[1771708442400,1.18920239,626.1,625.42,1.19580436]
[1771708447199,1.18920239,626.1,625.43,1.19580436]
[1771708451306,1.18920239,626.16,625.5,1.19580436]
[1771708453206,1.18920239,626.16,625.51,1.159]
[1771708459406,1.18920239,626.19,625.53,1.19580436]
[1771708460305,1.18920239,626.18,625.53,1.19580436]
[1771708464211,1.18920239,626.18,625.54,1.19580436]
[1771708467210,1.18920239,626.17,625.54,1.19580436]
[1771708469311,1.18920239,626.17,625.55,1.19580436]
[1771708470314,1.18920239,626.16,625.55,1.19580436]
[1771708482229,1.18920239,626.16,625.56,1.19580436]
[1771708485132,1.18920239,626.16,625.57,1.339]
[1771708486633,1.18920239,626.18,625.58,1.19580436]
[1771708487333,1.18920239,626.17,625.58,1.19580436]
[1771708487631,1.18920239,626.18,625.58,1.19580436]
[1771708488229,1.18920239,626.17,625.58,1.19580436]
[1771708492237,1.18920239,626.17,625.59,1.19580436]
[1771708493137,1.18920239,626.16,625.59,1.19580436]
[1771708495239,1.18920239,626.16,625.6,1.19580436]
[1771708496237,1.18920239,626.15,625.6,1.19580436]
[1771708503543,1.18920239,626.14,625.59,1.19580436]
[1771708512157,1.18920239,626.08,625.59,1.19580436]
[1771708512353,1.18920239,626.08,625.57,1.339]
[1771708513358,1.18920239,626.09,625.57,1.339]
[1771708518158,1.18920239,626.1,625.57,1.339]
[1771708519561,1.18920239,626.03,625.57,1.339]
[1771708523263,1.18920239,626.07,625.57,1.339]
[1771708526568,1.18920239,626.08,625.57,1.339]
[1771708534173,1.18920239,626.08,625.37,1.59429317]
[1771708537672,1.18920239,626.08,625.38,1.408]
[1771708541378,1.18920239,626.08,625.38,3.00229317]
[1771708547282,1.58354837,626.19,625.38,3.00229317]
[1771708547483,1.19240417,626.08,625.38,3.00229317]
[1771708548383,1.19240417,626.07,625.38,3.00229317]
[1771708549484,1.19240417,626.11,625.52,1.19784879]
[1771708551781,1.19240417,626.1,625.52,1.19784879]
[1771708557283,1.19240417,626.1,625.53,1.19784879]
[1771708564389,1.58354837,626.21,625.42,1.59429317]
[1771708564390,1.19240417,626.09,625.54,1.19784879]
[1771708567492,1.19240417,626.08,625.55,1.19784879]
[1771708567990,1.19240417,626.08,625.56,1.471]
[1771708569493,1.58354837,626.19,625.56,1.471]
[1771708569697,1.19331182,626.08,625.56,1.471]
[1771708577806,1.58354837,626.19,625.56,1.471]
[1771708578003,1.19345265,626.08,625.56,1.471]
[1771708579607,1.19345265,626.08,625.56,2.67017832]
[1771708583112,1.19345265,626.11,625.58,1.19917832]
[1771708585214,1.19345265,626.11,625.57,1.19917832]
[1771708586317,1.19345265,626.12,625.57,1.19917832]
[1771708586917,1.19345265,626.13,625.59,1.19917832]
[1771708588315,1.19345265,626.14,625.58,1.19917832]
[1771708599327,1.19345265,626.14,625.57,1.19917832]
[1771708600124,1.19345265,626.15,625.57,1.19917832]
[1771708609532,1.19345265,626.15,625.58,1.19917832]
[1771708609935,1.19345265,626.19,625.62,1.19917832]
[1771708610434,1.19345265,626.2,625.62,1.19917832]
[1771708613138,1.19345265,626.2,625.61,1.19917832]
[1771708627047,1.19345265,626.2,625.63,1.19917832]
[1771708627247,1.19345265,626.38,625.8,1.19917832]
[1771708627451,1.19345265,626.42,625.79,1.19917832]
[1771708628449,1.19345265,626.42,625.57,2.38732477]
[1771708628450,1.19345265,626.43,625.78,1.19917832]
[1771708629453,1.19345265,626.44,625.77,1.19917832]
[1771708630553,1.19345265,626.45,625.76,1.19917832]
[1771708631457,1.19345265,626.46,625.75,1.19917832]
[1771708632355,1.19345265,626.47,625.74,1.19917832]
[1771708634457,0.27790866,626.68,625.62,1.59429317]
[1771708634458,1.19345265,626.48,625.73,1.19917832]
[1771708634662,1.19345265,626.49,625.75,1.19917832]
[1771708635562,1.19345265,626.5,625.74,1.19917832]
[1771708637461,1.19345265,626.51,625.73,1.19917832]
[1771708639365,1.19345265,626.52,625.73,1.19917832]
[1771708639869,1.19345265,626.54,625.75,1.19917832]
[1771708642365,1.19345265,626.54,625.63,1.59429317]
[1771708642366,1.19345265,626.55,625.74,1.19917832]
[1771708645073,1.19345265,626.54,625.73,1.19917832]
[1771708645870,1.19345265,626.53,625.73,1.19917832]
[1771708647576,1.19345265,626.54,625.73,1.19917832]
[1771708650172,1.19345265,626.53,625.74,1.19917832]
[1771708654179,1.19345265,626.52,625.75,1.19917832]
[1771708657080,1.19345265,626.52,625.76,1.91]
[1771708658181,1.19345265,626.51,625.76,3.10917832]
[1771708661184,1.19345265,626.5,625.77,1.19917832]
[1771708663183,1.19345265,626.49,625.78,1.19917832]
[1771708666288,1.19345265,626.48,625.79,1.19917832]
[1771708666989,1.19345265,626.47,625.78,1.19917832]
[1771708667293,1.19345265,626.46,625.79,1.19917832]
[1771708668393,0.27790866,626.68,625.76,1.91]
[1771708668394,1.19345265,626.45,625.8,1.19917832]
[1771708669391,1.19345265,626.44,625.81,1.19917832]
[1771708670390,1.19345265,626.43,625.82,1.19917832]
[1771708671289,1.19345265,626.4,625.85,1.19917832]
[1771708672690,0.27790866,626.68,625.85,1.19917832]
[1771708672691,1.19345265,626.39,625.85,1.19917832]
[1771708673595,1.19316231,626.39,625.85,1.19824442]
[1771708676798,0.27790866,626.68,625.83,1.19824442]
[1771708676799,1.19316231,626.38,625.83,1.19824442]
[1771708677000,1.19316231,626.31,625.77,1.19824442]
[1771708677394,2.37067184,626.54,625.76,1.91]
[1771708677395,1.19316231,626.32,625.76,3.10824442]
[1771708678500,1.19316231,626.33,625.76,1.91]
[1771708679997,1.19316231,626.3,625.76,1.91]
[1771708680202,1.19316231,626.31,625.76,1.91]
[1771708682005,1.19316231,626.29,625.76,1.91]
[1771708682202,1.19316231,626.3,625.76,1.91]
[1771708684208,1.19316231,626.31,625.76,1.91]
[1771708685010,1.19316231,626.3,625.76,1.91]
[1771708685309,1.19316231,626.27,625.76,1.91]
[1771708685805,1.19316231,626.25,625.76,1.91]
[1771708686209,1.19316231,626.26,625.76,1.91]
[1771708687210,1.19316231,626.27,625.76,1.91]
[1771708689207,1.19316231,626.28,625.76,1.91]
[1771708689814,1.19316231,626.27,625.76,1.91]
[1771708691014,1.19316231,626.27,625.55,1.19824442]
[1771708691210,1.19316231,626.28,625.55,1.19824442]
[1771708692213,1.19316231,626.28,625.54,1.19824442]
[1771708693215,1.19316231,626.29,625.54,1.19824442]
[1771708694318,1.19316231,626.29,625.53,1.19824442]
[1771708695321,1.19316231,626.29,625.54,1.19]
[1771708696523,1.19316231,626.31,625.54,2.38824442]
[1771708707329,1.19316231,626.3,625.55,1.19824442]
[1771708710033,1.19316231,626.31,625.56,1.19824442]
[1771708710833,1.19316231,626.31,625.57,1.24]
[1771708711333,1.19316231,626.3,625.57,2.43824442]
[1771708714432,1.19316231,626.29,625.58,1.19824442]
[1771708716536,1.19316231,626.28,625.59,1.19824442]
[1771708717336,1.19316231,626.27,625.58,1.19824442]
[1771708717536,0.27790866,626.68,625.57,2.43824442]
[1771708717537,1.19316231,626.25,625.57,2.43824442]
[1771708718340,1.19316231,626.25,625.58,1.19824442]
[1771708719342,1.19316231,626.24,625.58,1.19824442]
[1771708720345,1.19316231,626.23,625.59,1.19824442]
[1771708721343,1.19316231,626.22,625.6,1.19824442]
[1771708722443,1.19316231,626.22,625.61,1.19824442]
[1771708723339,1.19316231,626.21,625.61,1.19824442]
[1771708724343,1.19316231,626.2,625.62,1.19824442]
[1771708726242,1.19316231,626.2,625.63,1.19824442]
[1771708728145,1.19316231,626.19,625.63,1.19824442]
[1771708729245,1.19316231,626.19,625.64,1.19824442]
[1771708735547,1.19316231,626.21,625.66,1.19824442]
[1771708735750,1.19316231,626.22,625.67,1.19824442]
[1771708740454,1.19316231,626.25,625.7,1.19824442]
[1771708741151,1.19316231,626.26,625.7,1.19824442]
[1771708742456,1.58354837,626.37,625.58,1.59429317]
[1771708742656,1.19305361,626.26,625.7,1.19802411]
[1771708743252,1.19305361,626.26,625.69,1.19802411]
[1771708745158,1.19305361,626.27,625.69,1.19802411]
[1771708747457,1.19305361,626.27,625.7,1.64]
[1771708756368,1.19305361,626.28,625.7,1.64]
[1771708764278,2.37067184,626.51,625.7,1.64]
[1771708764279,1.19305361,626.29,625.7,1.64]
[1771708764478,1.19305361,626.31,625.71,1.19802411]
[1771708765280,1.19305361,626.32,625.72,1.19802411]
[1771708767180,1.58354837,626.44,625.7,1.64]
[1771708767383,1.19198533,626.34,625.74,1.19697173]
[1771708768182,1.19198533,626.34,625.73,1.19697173]
[1771708770180,1.19198533,626.35,625.73,1.19697173]
[1771708777287,1.19198533,626.34,625.73,1.19697173]
[1771708779192,1.19198533,626.34,625.74,1.19697173]
[1771708784294,1.58354837,626.45,625.7,1.64]
[1771708784492,1.19224529,626.34,625.74,1.19717332]
[1771708796202,1.19224529,626.34,625.75,1.19717332]
[1771708797301,1.19224529,626.33,625.75,1.19717332]
[1771708803104,1.19224529,626.33,625.76,1.315]
[1771708804204,1.19224529,626.32,625.76,1.315]
[1771708805104,1.19224529,626.32,625.76,2.51217332]
[1771708808302,1.19224529,626.31,625.77,1.19717332]
[1771708810408,1.19224529,626.3,625.77,1.19717332]
[1771708811309,1.19224529,626.3,625.78,1.19717332]
[1771708820012,1.19224529,626.3,625.79,1.57]
[1771708823816,1.19224529,626.23,625.79,1.57]
[1771708824218,1.19224529,626.24,625.79,1.57]
[1771708825113,1.19224529,626.25,625.79,1.57]
[1771708825417,1.19224529,626.29,625.79,1.57]
[1771708825717,1.19224529,626.3,625.79,1.57]
[1771708826117,1.19224529,626.32,625.79,1.57]
[1771708827214,1.19224529,626.34,625.79,1.57]
[1771708847025,1.58354837,626.46,625.79,1.57]
[1771708847230,1.19348248,626.34,625.79,1.57]
[1771708852134,1.19348248,626.34,625.77,1.19768649]
[1771708856239,1.19348248,626.34,625.78,1.515]
[1771708869244,1.19348248,626.33,625.78,1.515]
[1771708869749,1.19348248,626.3,625.78,1.515]
[1771708870244,1.19348248,626.29,625.78,1.515]
[1771708876345,1.19348248,626.3,625.78,1.515]
[1771708893862,1.19348248,626.31,625.78,1.515]
[1771708894266,1.19348248,626.39,625.82,1.19768649]
[1771708895364,1.19348248,626.39,625.78,1.515]
[1771708895365,1.19348248,626.39,625.81,1.19768649]
[1771708896365,1.19348248,626.4,625.81,1.19768649]
[1771708899366,1.19348248,626.4,625.8,1.19768649]
[1771708901371,1.19348248,626.41,625.8,1.19768649]
[1771708906374,1.19348248,626.41,625.79,1.19768649]
[1771708912275,1.19348248,626.41,625.78,1.19768649]
[1771708922292,0.27793085,626.59,625.77,1.747]
[1771708922293,1.19348248,626.4,625.77,2.94468649]
[1771708925290,1.19348248,626.4,625.78,1.19768649]
[1771708927489,1.19348248,626.39,625.78,1.19768649]
[1771708931293,1.19348248,626.39,625.79,1.19768649]
[1771708932293,1.19348248,626.38,625.79,1.19768649]
[1771708935393,1.19348248,626.37,625.8,1.19768649]
[1771708937295,1.19348248,626.36,625.81,1.19768649]
[1771708938298,1.19348248,626.35,625.82,1.19768649]
[1771708947303,1.19348248,626.36,625.83,1.19768649]
[1771708947602,1.19348248,626.38,625.84,1.19768649]
[1771708949306,1.19441374,626.38,625.84,1.19828591]
[1771708957308,1.19441374,626.38,625.83,1.19828591]
[1771708974921,1.19441374,626.37,625.83,1.19828591]
[1771708976220,1.19441374,626.36,625.82,1.19828591]
[1771708984627,1.19441374,626.36,625.83,1.756]
[1771708985130,0.27793085,626.59,625.84,1.19828591]
[1771708985131,1.19441374,626.37,625.84,1.19828591]
[1771708996045,1.19441374,626.4,625.87,1.19828591]
[1771708997147,1.19441374,626.41,625.87,1.19828591]
[1771708998445,1.19441374,626.41,625.86,1.19828591]
[1771708999951,1.19441374,626.42,625.87,1.19828591]
[1771709006155,1.19441374,626.42,625.86,1.19828591]
[1771709015462,1.19441374,626.33,625.83,1.756]
[1771709016066,1.19441374,626.34,625.83,1.756]
[1771709019071,1.19441374,626.35,625.83,1.756]
[1771709020271,1.19441374,626.36,625.83,1.756]
[1771709023372,1.19441374,626.36,625.76,1.19828591]
[1771709027580,1.19441374,626.36,625.77,1.349]
[1771709034183,1.19441374,626.37,625.77,1.349]
[1771709037583,1.58354837,626.48,625.77,1.349]
[1771709037782,1.19444405,626.37,625.77,1.349]
[1771709046092,1.19444405,626.36,625.77,1.349]
[1771709053093,1.19444405,626.35,625.77,1.349]
[1771709053693,1.19444405,626.35,625.76,1.19641863]
[1771709055200,1.19444405,626.35,625.77,1.19641863]
[1771709057097,1.19444405,626.34,625.77,1.19641863]
[1771709057302,1.19444405,626.34,625.78,1.728]
[1771709058102,1.19444405,626.34,625.78,2.92441863]
[1771709059100,1.19444405,626.33,625.78,2.92441863]
[1771709060101,1.19444405,626.32,625.8,1.19641863]
[1771709063104,1.19444405,626.31,625.8,1.19641863]
[1771709069512,1.58354837,626.43,625.78,1.728]
[1771709069710,1.19702737,626.31,625.8,1.19875871]
[1771709077121,1.19702737,626.31,625.81,1.598]
[1771709090023,1.19702737,626.32,625.81,1.598]
[1771709092424,1.19702737,626.34,625.83,1.19875871]
[1771709093324,1.19702737,626.38,625.84,1.19875871]
[1771709094129,1.19702737,626.45,625.92,1.19875871]
[1771709094324,1.19702737,626.46,625.9,1.19875871]
[1771709095226,1.19702737,626.47,625.89,1.19875871]
[1771709096227,1.19702737,626.48,625.89,1.19875871]
[1771709097327,1.19702737,626.48,625.88,1.19875871]
[1771709098028,1.19702737,626.51,625.9,1.19875871]
[1771709099232,1.19702737,626.52,625.89,1.19875871]
[1771709102236,1.19702737,626.53,625.88,1.19875871]
[1771709105137,1.19702737,626.54,625.87,1.19875871]
[1771709106841,1.19702737,626.55,625.88,1.19875871]
[1771709109341,1.19702737,626.56,625.87,1.19875871]
[1771709119853,1.19702737,626.56,625.88,1.563]
[1771709120153,1.19702737,626.57,625.88,2.76175871]
[1771709125362,1.19702737,626.57,625.89,1.19875871]
[1771709127160,1.19702737,626.56,625.89,1.19875871]
[1771709130264,1.19702737,626.55,625.9,1.19875871]
[1771709132364,1.19702737,626.55,625.91,1.19875871]
[1771709133268,1.19702737,626.54,625.91,1.19875871]
[1771709134266,1.19702737,626.53,625.92,1.19875871]
[1771709136265,1.19702737,626.52,625.93,1.19875871]
[1771709137465,1.19702737,626.52,625.88,1.563]
[1771709137466,1.19702737,626.5,625.95,1.19875871]
[1771709138267,1.19702737,626.49,625.96,1.19875871]
[1771709147169,1.19702737,626.49,625.97,1.19875871]
[1771709149171,1.19702737,626.48,625.97,1.19875871]
[1771709150274,1.19702737,626.48,625.96,1.19875871]
[1771709155882,1.19702737,626.47,625.96,1.19875871]
[1771709156284,1.19702737,626.47,625.95,1.19875871]
[1771709162184,1.19702737,626.47,625.88,1.563]
[1771709162185,1.19702737,626.48,625.96,1.19875871]
[1771709167492,1.19702737,626.48,625.97,1.229]
[1771709196621,0.27790644,626.66,625.97,1.229]
[1771709196622,1.19702737,626.46,625.97,1.229]
[1771709198323,1.19702737,626.45,625.97,1.229]
[1771709198722,1.19702737,626.44,625.97,1.229]
[1771709203420,1.19702737,626.45,625.97,1.229]
[1771709204722,1.19702737,626.45,625.9,1.19875871]
[1771709205326,1.19702737,626.45,625.78,1.59429317]
[1771709205327,1.19702737,626.45,625.89,1.19875871]
[1771709210325,1.19702737,626.46,625.89,1.19875871]
[1771709220536,1.58354837,626.57,625.8,1.563]
[1771709220737,1.19730427,626.46,625.89,1.19649338]
[1771709228936,1.19730427,626.47,625.9,1.19649338]
[1771709229439,1.19730427,626.47,625.91,1.19649338]
[1771709232344,1.58354837,626.58,625.91,1.19649338]
[1771709232345,1.19730427,626.46,625.91,1.19649338]
[1771709239353,1.19730427,626.46,625.92,1.19649338]
[1771709241353,1.19730427,626.46,625.93,1.19649338]
[1771709251257,1.58354837,626.57,625.83,1.671]
[1771709251458,1.19815805,626.46,625.93,1.19755282]
[1771709256363,1.19815805,626.44,625.92,1.19755282]
[1771709270274,1.19815805,626.45,625.92,1.19755282]
[1771709285182,1.19815805,626.44,625.92,1.19755282]
[1771709287586,1.19815805,626.45,625.93,1.19755282]
[1771709287786,1.19815805,626.45,625.93,2.47555282]
[1771709305301,1.19815805,626.46,625.93,2.47555282]
[1771709312321,1.58354837,626.57,625.95,1.19755282]
[1771709312322,1.19815805,626.48,625.95,1.19755282]
[1771709312610,1.19815805,626.49,625.96,1.19755282]
[1771709314914,1.19815805,626.49,625.96,1.19705983]
[1771709314915,1.19795259,626.49,625.96,1.19705983]
[1771709315114,1.19795259,626.49,625.95,1.19705983]
[1771709318116,1.19795259,626.5,625.95,1.19705983]
[1771709321318,1.19795259,626.5,625.96,1.53]
[1771709350837,1.19795259,626.5,625.96,2.72705983]
[1771709352441,1.19795259,626.52,625.98,1.19705983]
[1771709357143,1.19795259,626.51,625.98,1.19705983]
[1771709358243,1.19795259,626.52,625.98,1.19705983]
[1771709360543,1.19795259,626.5,625.97,1.19705983]
[1771709362441,1.19795259,626.5,625.96,2.72705983]
[1771709367152,1.19795259,626.51,625.96,2.72705983]
[1771709371344,1.19795259,626.51,625.96,1.19705983]
[1771709374256,1.19795259,626.51,625.97,1.482]
[1771709376852,0.27786206,626.74,625.97,1.482]
[1771709376853,1.19795259,626.49,625.97,1.482]
[1771709390466,1.19795259,626.48,625.97,1.482]
[1771709402582,1.19795259,626.44,625.97,1.482]
[1771709405185,1.58354837,626.56,625.97,1.482]
[1771709405186,1.19795259,626.45,625.97,1.482]
[1771709413489,1.19795259,626.4,625.97,1.482]
[1771709414188,1.19795259,626.39,625.97,1.482]
[1771709415185,1.19795259,626.4,625.97,1.482]
[1771709417391,1.19795259,626.41,625.97,1.482]
[1771709421791,1.19795259,626.42,625.97,1.482]
[1771709422092,1.19795259,626.42,625.81,1.19705983]
[1771709424388,1.19795259,626.43,625.8,1.19705983]
[1771709424993,1.19795259,626.43,625.81,1.19705983]
[1771709425190,1.19795259,626.43,625.81,1.247]
[1771709426297,1.19795259,626.44,625.81,1.247]
[1771709426593,1.19795259,626.44,625.82,1.19705983]
[1771709427493,1.19795259,626.48,625.85,1.19705983]
[1771709428296,1.19795259,626.48,625.86,1.19705983]
[1771709431198,1.19795259,626.47,625.86,1.19705983]
[1771709431398,1.19795259,626.48,625.86,1.19705983]
[1771709432097,1.19795259,626.47,625.86,1.19705983]
[1771709440107,1.19795259,626.47,625.87,1.19705983]
[1771709442209,1.19795259,626.46,625.87,1.19705983]
[1771709447209,1.19795259,626.46,625.88,1.19705983]
[1771709450517,1.19795259,626.47,625.89,1.19705983]
[1771709457530,1.19795259,626.47,625.9,1.314]
[1771709462237,1.19795259,626.46,625.9,2.51105983]
[1771709467341,1.19795259,626.45,625.9,2.51105983]
[1771709468141,1.19795259,626.45,625.91,1.19705983]
[1771709471245,1.19795259,626.44,625.92,1.19705983]
[1771709476044,1.19795259,626.45,625.94,1.19705983]
[1771709476541,1.19795259,626.46,625.95,1.19705983]
[1771709477245,1.19795259,626.47,625.94,1.19705983]
[1771709481650,1.19795259,626.48,625.95,1.19705983]
[1771709484360,1.19795259,626.49,625.95,1.19705983]
[1771709485257,1.19795259,626.49,625.94,1.19705983]
[1771709497763,1.19754527,626.49,625.94,1.19733081]
[1771709510576,1.19754527,626.48,625.94,1.19733081]
[1771709518285,1.19754527,626.47,625.94,1.19733081]
[1771709519289,1.19754527,626.47,625.95,1.19733081]
[1771709521787,1.19754527,626.51,626.0,1.19733081]
[1771709522090,1.19754527,626.52,625.99,1.19733081]
[1771709523390,1.19754527,626.55,626.01,1.19733081]
[1771709523690,1.19754527,626.59,626.06,1.19733081]
[1771709524187,1.19754527,626.61,626.04,1.19733081]
[1771709526192,1.19754527,626.62,626.03,1.19733081]
[1771709528288,1.19754527,626.63,626.02,1.19733081]
[1771709530392,1.19754527,626.64,626.02,1.19733081]
[1771709531096,1.19754527,626.64,626.01,1.19733081]
[1771709535198,1.19754527,626.65,626.01,1.19733081]
[1771709535403,1.19754527,626.65,626.0,1.19733081]
[1771709536801,1.19754527,626.67,626.02,1.19733081]
[1771709540105,1.19754527,626.68,626.02,1.19733081]
[1771709541307,1.19754527,626.68,626.03,1.151]
[1771709543104,1.19754527,626.69,626.03,1.151]
[1771709545007,1.19754527,626.7,626.03,2.34833081]
[1771709545310,1.19754527,626.82,626.15,1.19733081]
[1771709546206,1.19754527,626.83,626.14,1.19733081]
[1771709547311,1.19754527,626.84,626.14,1.19733081]
[1771709548113,1.19754527,626.84,626.13,1.19733081]
[1771709549212,1.19754527,626.85,626.13,1.19733081]
[1771709550213,1.19754527,626.85,626.12,1.19733081]
[1771709551216,1.19754527,626.86,626.12,1.19733081]
[1771709553216,1.19754527,626.86,626.11,1.19733081]
[1771709553814,1.19754527,626.95,626.21,1.19733081]
[1771709554116,1.19754527,626.96,626.2,1.19733081]
[1771709555117,1.19754527,626.97,626.19,1.19733081]
[1771709557115,1.19754527,626.98,626.18,1.19733081]
[1771709561124,1.19754527,626.98,626.17,1.19733081]
[1771709561323,1.19754527,626.98,626.18,1.19733081]
[1771709564325,0.27776447,627.01,626.13,1.19733081]
[1771709564326,1.19754527,626.93,626.13,1.19733081]
[1771709566122,1.19754527,626.93,626.14,1.19733081]
[1771709568122,1.19754527,626.92,626.14,1.19733081]